Cogmind - Beta 13 @@@ ROGUE MODE // 2024.06.13 @ 15:44:49 Player: Kat Result: Self-destructed Performance ------------- Evolutions (1) 500 Regions Visited (2) 400 Robots Destroyed (32) 160 Value Destroyed (548) 548 Prototype IDs (0) 0 Alien Tech Used (0) 0 Bonus (0) 0 TOTAL SCORE: 1608 Bonus ------- None Cogmind --------- Core Integrity 400/400 Matter 300/300 Energy 16/100 System Corruption 0% Temperature Cool (8) Movement Treading (170) Location -9/Materials Parts ------- > --- POWER (1) -------- (None) > --- PROPULSION (4) --- Armored Treads Armored Treads Armored Treads Armored Treads > --- UTILITY (2) ------ Small Storage Unit Sensor Array > --- WEAPON (2) ------- Field Laser Field Laser > --- INVENTORY (8) ---- VTOL Module VTOL Module VTOL Module VTOL Module Heat Sink Pulse Rifle Pulse Rifle Rocket Launcher Peak State ------------ > --- POWER ------------ Light Ion Engine > --- PROPULSION ------- Armored Treads Armored Treads Armored Treads Armored Treads > --- UTILITY ---------- Small Storage Unit Sensor Array > --- WEAPON ----------- Pulse Rifle Pulse Rifle > --- INVENTORY -------- VTOL Module VTOL Module VTOL Module VTOL Module Heat Sink Spread Laser Spread Laser Rocket Launcher [Rating: 22] Favorites ----------- Power Ion Engine Engine Ion Engine Propulsion Aluminum Leg Treads Armored Treads Leg Aluminum Leg Flight Unit VTOL Module Utility Small Storage Unit Device Heat Sink Storage Small Storage Unit Weapon Beam Cannon Energy Gun Spread Laser Energy Cannon Beam Cannon Special Weapon Plasma Cutter Build | -11 -10 -9 ------- Run | Yrd Mat Mat Slots Evolved 2 | . . 2 Power . | . . . Propulsion 2 | . . 2 Utility . | . . . Weapon . | . . . Parts Attached 39 | 7 19 13 Power 4 | 1 3 . Engine 4 | 1 3 . Core . | . . . Reactor . | . . . Propulsion 17 | 2 7 8 Treads 4 | . . 4 Leg 9 | 2 7 . Wheel . | . . . Hover . | . . . Flight 4 | . . 4 Utility 6 | 2 3 1 Device 5 | 1 3 1 Storage 1 | 1 . . Processor . | . . . Hackware . | . . . Protection . | . . . Artifact . | . . . Weapon 12 | 2 6 4 Energy Gun 9 | 2 3 4 Energy Cannon 2 | . 2 . Ballistic Gun . | . . . Ballistic Cannon . | . . . Launcher . | . . . Special Weapon 1 | . 1 . Impact Weapon . | . . . Slashing Weapon . | . . . Piercing Weapon . | . . . Special Melee Weapon . | . . . Unidentified Prototypes . | . . . Parts Lost 2 | . 1 1 Power 1 | . . 1 Propulsion 1 | . 1 . Utility . | . . . Weapon . | . . . Highest Loss Streak 1 | . 1 1 To Critical Strikes . | . . . Average Slot Usage (%) 95 | . 94 97 Engine 13 | . 14 10 Treads 9 | . . 40 Leg 17 | . 23 . Device 13 | . 14 11 Storage 13 | . 14 11 Energy Gun 17 | . 15 22 Energy Cannon 9 | . 11 . Naked Turns . | . . . Heaviest Build 17 | 13 17 15 Greatest Support 80 | 20 20 80 Greatest Overweight (x) 2 | 2 1 . Average Overweight (x) . | . . . Largest Inventory Capacity 8 | 8 8 8 Average Capacity 7 | 7 8 8 Most Carried 8 | 1 8 8 Average Carried 6 | . 7 7 Final Capacity 8 | 8 8 8 Final Carried 8 | 1 8 8 Class Distribution -------------------- 100% | Mutant Dominant Class ---------------- Mutant | -10/Materials Mutant | -9/Materials Resources | -11 -10 -9 ----------- Run | Yrd Mat Mat Matter Collected 540 | 270 140 130 Remotely . | . . . Salvage Created 1049 | 153 589 307 Parts 63 | 13 35 15 Haulers Intercepted 2 | . 2 . Recyclers Shooed 2 | 1 . 1 Parts Field Recycled . | . . . Retrieved Matter . | . . . Parts Self-Destructed . | . . . Prevented . | . . . Kills | -11 -10 -9 ------- Run | Yrd Mat Mat Combat Hostiles Destroyed 16 | . 11 5 Guns 10 | . 5 5 Cannons 6 | . 6 . Classes Destroyed 8 | 2 6 . Worker 1 | . 1 . Builder 2 | . 1 1 Tunneler 4 | 3 1 . Hauler 2 | . 2 . Recycler 4 | 1 2 1 Watcher 3 | . 2 1 Swarmer 6 | . 6 . Grunt 10 | . 5 5 Best Kill Streak 6 | 3 4 6 Combat Bots Only 4 | . 3 4 Max Kills in Single Turn 1 | 1 1 1 Gunslinging . | . . . Exploded . | . . . Melee . | . . . Uniques/NPCs Destroyed . | . . . Combat | -11 -10 -9 -------- Run | Yrd Mat Mat Hostile Shots Fired 74 | . 61 13 Missed 20 | . 19 1 Damage Taken 587 | . 455 132 Core 114 | . 114 . Absorbed by Shields . | . . . Core Remaining (%) 77 | 100 54 . Volleys Fired 83 | 9 55 19 Largest 2 | 2 2 2 Hottest 130 | 80 130 126 Shots Fired 166 | 18 110 38 Gun 128 | 18 72 38 Cannon 38 | . 38 . Launcher . | . . . Special . | . . . Kinetic . | . . . Thermal 166 | 18 110 38 Explosive . | . . . Electromagnetic . | . . . Robot Hit Streak 11 | 4 11 9 Robot Miss Streak 6 | 3 6 4 Penetration Max . | . . . Secondary Targets . | . . . Shots Hit Robots 93 | 9 64 20 Core Hits 56 | 5 43 8 Critical Kills . | . . . Critical Parts Destroyed . | . . . Critical Strikes 1 | . . 1 Burn 1 | . . 1 Melee Attacks . | . . . Impact . | . . . Slashing . | . . . Piercing . | . . . Sneak Attacks . | . . . Combat Hostiles . | . . . Follow-up Attacks . | . . . Damage Inflicted 1398 | 100 924 374 Guns 1025 | 100 551 374 Cannons 370 | . 370 . Explosions . | . . . Melee . | . . . Ramming 3 | . 3 . Kinetic . | . . . Thermal 1395 | 100 921 374 Explosive . | . . . Electromagnetic . | . . . Impact . | . . . Slashing . | . . . Piercing . | . . . Highest Corruption . | . . . Average Corruption . | . . . Corruption Purged . | . . . Corruption Blocked . | . . . Overload Shots . | . . . Overflow Damage . | . . . Projectiles . | . . . Explosions . | . . . Melee . | . . . Knockbacks . | . . . Impact . | . . . Kinetic . | . . . Secondary . | . . . Self-Inflicted Damage . | . . . Shots . | . . . Rammed . | . . . Targets Rammed 1 | . 1 . Kicked 1 | . 1 . Crushed . | . . . Highest Temperature 392 | 90 180 392 Average Temperature 88 | 34 43 163 Received Heat Transfer 222 | . 150 72 Siege Activations . | . . . Robots Corrupted . | . . . Combat Hostiles . | . . . Parts Fried . | . . . Impact Corruptions . | . . . Robots Melted . | . . . Combat Hostiles . | . . . Parts Melted 4 | . 4 . Heat Transferred 2930 | 225 1817 888 Parts Sabotaged . | . . . Parts Stolen . | . . . Parts Stripped . | . . . Power Chain Reactions . | . . . Alert | -11 -10 -9 ------- Run | Yrd Mat Mat Peak Influence 241 | 20 150 241 Initial 42 | . 13 42 Average 68 | 9 68 88 Maximum Alert Level 1 | . . 1 Low Security (%) 97 | 100 100 88 Level 1 2 | . . 11 Level 2 . | . . . Level 3 . | . . . Level 4 . | . . . Level 5 . | . . . High Security . | . . . Max Security . | . . . Squads Dispatched 6 | . 2 4 Investigation 5 | . 2 3 Extermination . | . . . Reinforcement 1 | . . 1 Assault . | . . . Garrison . | . . . Intercept . | . . . Searches Triggered . | . . . Construction Impeded . | . . . Haulers Reinforced . | . . . Active Scanning Responses . | . . . Cargo Convoy Interrupts . | . . . Stealth | -11 -10 -9 --------- Run | Yrd Mat Mat Distress Signals . | . . . Communications Jammed . | . . . Distress Signals . | . . . Times Spotted 25 | . 16 9 Peak Tracking Total 5 | . 3 5 Tactical Retreats 1 | . . 1 Traps | -11 -10 -9 ------- Run | Yrd Mat Mat Traps Triggered 2 | . 2 . Indirectly . | . . . Trap Hack Attempts . | . . . Triggered . | . . . Disarmed . | . . . Reprogrammed . | . . . Reused . | . . . Traps Extracted . | . . . Installed . | . . . Triggered . | . . . Machines | -11 -10 -9 ---------- Run | Yrd Mat Mat Machines Disabled 2 | . 1 1 Max in Single Turn 1 | . 1 1 Machines Repaired . | . . . Machines Dismantled . | . . . Machines Sabotaged . | . . . Overloaded Fab Kills . | . . . Hacking | -11 -10 -9 --------- Run | Yrd Mat Mat Machines Accessed 12 | . 8 4 Terminals 11 | . 7 4 Fabricators . | . . . Repair Stations . | . . . Recycling Units 1 | . 1 . Scanalyzers . | . . . Garrison Access . | . . . Total Hacks 39 | . 24 15 Successful 19 | . 11 8 Failed 20 | . 13 7 Catastrophic 2 | . 1 1 Database Lockouts . | . . . Manual 35 | . 20 15 Terminals 35 | . 20 15 Fabricators . | . . . Repair Stations . | . . . Recycling Units 4 | . 4 . Scanalyzers . | . . . Garrison Access . | . . . Terminal Hacks 2 | . 1 1 Terminal Index 2 | . 1 1 Fabricator Hacks . | . . . Repair Station Hacks . | . . . Recycling Unit Hacks 3 | . 3 . Process 1 | . 1 . Report Inventory 1 | . 1 . Retrieve Matter 1 | . 1 . Scanalyzer . | . . . Garrison Access Hacks . | . . . Unauthorized Hacks 14 | . 7 7 Terminals 14 | . 7 7 Assimilate 2 | . . 2 Botnet 10 | . 6 4 Operators 2 | . 1 1 Fabricators . | . . . Repair Stations . | . . . Recycling Units . | . . . Scanalyzers . | . . . Garrison Access . | . . . Data Cores Recovered . | . . . Used . | . . . Hacking Detections 10 | . 6 4 Full Trace Events 7 | . 4 3 Feedback Events . | . . . Feedback Blocked . | . . . Robot Schematics Acquired . | . . . Robots Built . | . . . Authchips . | . . . Time . | . . . Total Robot Build Rating . | . . . Part Schematics Acquired . | . . . Parts Built . | . . . Authchips . | . . . Time . | . . . Total Part Build Rating . | . . . Parts Repaired . | . . . Time . | . . . Parts Recycled . | . . . Recycled Matter 103 | . 103 . Retrieved Matter 103 | . 103 . Retrieved Components . | . . . Parts Scanalyzed . | . . . Part Schematics Acquired . | . . . Parts Damaged . | . . . Bothacking | -11 -10 -9 ------------ Run | Yrd Mat Mat Used RIF Installer . | . . . Robots Hacked . | . . . Non-combat . | . . . Combat . | . . . Robot Hacks Applied . | . . . Relay Couplers Released . | . . . Fabnet Peak Effective % . | . . . Robots Rewired . | . . . Allies Hacked . | . . . Hacks Repelled . | . . . Allies | -11 -10 -9 -------- Run | Yrd Mat Mat Total Allies . | . . . Largest Group . | . . . Highest-Rated Group . | . . . Highest-Rated Ally . | . . . Total Orders . | . . . Ally Attacks . | . . . Total Damage . | . . . Kills . | . . . Allies Corrupted . | . . . Allies Melted . | . . . Intel | -11 -10 -9 ------- Run | Yrd Mat Mat Robot Analysis Total . | . . . Derelict Logs Recovered . | . . . Drone Launches . | . . . Drone Recoveries . | . . . Exploration | -11 -10 -9 ------------- Run | Yrd Mat Mat Turns Passed 1703 | 136 1189 378 Spaces Moved 898 | 85 632 181 Core 18 | 18 . . Treads 151 | . . 151 Legs 699 | 67 632 . Wheels . | . . . Hover . | . . . Flight 30 | . . 30 Fastest Speed 26 | 50 120 26 Average Speed 138 | 114 139 146 Slowest Speed 190 | 150 190 170 Overloaded Moves . | . . . Propulsion Burnouts . | . . . Robots Hopped . | . . . Cave-ins Triggered . | . . . Exploration Rate (%) 41 | 5 95 24 Regions Visited 2 Branch Regions . Pre-discovered Areas . | . . . Known Exits Taken . | . . . Unknown Exits Taken 2 | 1 1 . Scrap Searched . | . . . Spaces Dug . | . . . Terrain Destroyed . | . . . Melee . | . . . Projectile . | . . . AOE . | . . . Terrain Rammed . | . . . Walls Destroyed . | . . . Machines Disabled . | . . . Actions | -11 -10 -9 --------- Run | Yrd Mat Mat Total 1191 | 102 830 259 Wait 121 | 1 92 28 Move 896 | 84 631 181 Hop . | . . . Pick Up 17 | 1 12 4 Fast Attach 22 | 7 9 6 Attach 5 | . 1 4 Detach 8 | . 2 6 Swap 12 | . 9 3 Drop 26 | . 18 8 Fire 83 | 9 55 19 Melee . | . . . Ram . | . . . Kick 1 | . 1 . Crush . | . . . Escape Stasis . | . . . Rewire . | . . . Trap . | . . . Miscellaneous . | . . . Route ------- -11/Scrapyard -10/Materials (discovered 4 exits: *Mat x3 / [*Min]) -9/Materials History --------- Turn | Location | Event 21 | -11/Scrapyard | Discovered new exit (range 15) 137 | -11/Scrapyard | Entered Materials 287 | -10/Materials | Discovered new exit (range 5) 335 | -10/Materials | Build established: Mutant 680 | -10/Materials | Discovered new exit (range 8) 987 | -10/Materials | Discovered new exit (range 14) 1283 | -10/Materials | Discovered new exit (range 15) 1326 | -10/Materials | Entered another Materials area 1326 | -9/Materials | Evolved 2 slots: Propulsion x2 1704 | -9/Materials | Self-destructed Last Messages --------------- 01619_ W-16 Scout suffers critical hit (Burn). 01619_ Material Processor disabled. 01645_ G-34 Mercenary destroyed. 01651_ U-05 Engineer destroyed. 01660_ G-34 Mercenary destroyed. 01662_ U-05 Engineer builds a Door. 01665_ Acquired 92 matter. 01666_ R-06 Scavenger inserts Aluminum Leg into recycling unit. 01669_ R-06 Scavenger inserts Spread Laser into recycling unit. 01677_ Lgt. Ion Engine destroyed. 01677_ Destroyed Hover Unit. 01680_ G-34 Mercenary destroyed. 01681_ ALERT: Hostiles spotted, dispatching reinforcements to Terminal M006. 01682_ R-06 Scavenger collects Sml. Laser. 01683_ W-16 Scout destroyed. 01686_ R-06 Scavenger collects Ion Engine. 01690_ R-06 Scavenger collects Sml. Laser. 01693_ R-06 Scavenger collects Heat Sink. 01702_ T-07 Excavator is excavating. Map ----- +----------------------------------------------------+ | ??????# #??#[ #?????????????? ?????????? | | ??????# #############??????????????????????????? | | ??????# #T##################???????????????????? | | ??????# + #???????????????????? | | ??????# ###### #???????????????????? | | ??????# ###??# """ """ #???????????????????? | | ?????## """ ""#??# """ """ #???????????????????? | | ?????#" """ T"#??# """ """ #???????????????????? | | ?????#T """ ""#??# #???????????????????? | | ?????#" ####?# =%!* #???????????????????? | | ?????## ##"""# ! #???????????????????? | | ??????# ##"Y"#####+############ ??????????? | | ??????# %! r %=%u #????????? | | ??????# !! #????????? | | ??????# #????????? | | ??????# ##########o ?????????? | | ??????# #?????????????????????? | | ?????? #?????????????????????? | | ?????# #?????????????????????? | | ?????? """ "" #?????????????????????? | | ?????? """"" """"" #?????????????????????? | | ?????? "?""" """"" #?????????????????????? | | ??????? ???""" """"" #?????????????????????? | | ????????????""" """ #?????????????????????? | | ????????? #?????????????????????? | | ????????? @ #?????????????????????? | | ??????????? """ #?????????????????????? | | ???????o?????"""u ##?????????????????????? | | ??????????????"" "??????????????????????? | | ??????????????"" !] Y??????????????????????? | | ??????????????" ! ""?????????????????????? | | ????????????? ##?????????????????????? | | ???????????? #??????????????????????? | | ???????????? ##### #??????????????????????? | | ????????????? ????? #??????????????????????? | | ????????????? g##+#?????? #??????????????????????? | | ????????????????????????? #??????????????????????? | | ????????????????????????? ???????????????????????? | | ????????????????????????? ???????????????????????? | | ?????????????????????????t???????????????????????? | | ?????????????????????????#???????????????????????? | | ?????????????????????????????????????????????????? | | ?????????????????????????????????????????????????? | | ?????????????????????????????????????????????????? | | ?????????????????????????????????????????????????? | | ?????????????????????????????????????????????????? | | ?????????????????????????????????????????????????? | | ?????????????????????????????????????????????????? | | ?????????????????????????????????????????????????? | | ?????????????????????????????????????????????????? | +----------------------------------------------------+ Best States ------------- Heat Dissipation 38 Energy Generation 10 Energy Capacity 250 Matter Stores 300 Matter Capacity 300 Sight Range 16 Robot Scan Range 14 Terrain Scan Density 10 Evasion (%) 64 Recoil Reduction 4 Item Schematics ----------------- None Robot Schematics ------------------ None Fabricated ------------ Nothing Alien Tech Used ----------------- None Achievements -------------- None Challenges ------------ None Game ------ Seed RagnarokExoskeletonScrap Manual? 0 Play Time 00:23:04 Cumulative 34.6 hours Start 2024.06.13 @ 15:26:18 End 2024.06.13 @ 15:44:49 Sessions 1 Manual Loads 0 Difficulty Rogue Special Mode None Game No. 77 Rogue 77 Adventurer 0 Explorer 0 Win Type - Total 0 Types 0/0/0/0/0/0/0/0/0 Lore% 22 Gallery% 28 Achievement% 23 Wizard Run 0 Options --------- Layout 0 ASCII 0 Keyboard 0 Movement Numpad Keybinds 0 Fullscreen 2 Font 18/Terminus Map View 76x50 Zoom Use 0% Tactical HUD 1 Map Filters NONE Filters NONE Steam 1 RUN: 65384141-7094-4a58-96ef-60eb87bdb2c2